bitfinex/quotes_ETHUSD_20260203
["timestamp","ask_amount","ask_price","bid_price","bid_amount"]
[1770132684539,1.0892004,2297.6,2296.4,0.01738639]
[1770132684739,1.0892004,2297.6,2296.2,0.01738639]
[1770132685046,1.0892004,2297.6,2296.5,0.01738639]
[1770132685241,1.0892004,2297.6,2296.6,0.913]
[1770132685666,0.0011,2297.6,2296.5,1.08858963]
[1770132685865,0.0011,2297.1,2296.6,1.08856547]
[1770132686171,0.0011,2297.1,2296.4,4.35463625]
[1770132686374,0.0011,2297.1,2296.6,1.08856107]
[1770132686739,0.0011,2297.6,2296.6,1.08856107]
[1770132687060,0.0011,2297.6,2296.5,1.08858611]
[1770132687266,0.0011,2297.6,2296.5,1.08857928]
[1770132687669,0.0011,2297.6,2296.2,1.08872286]
[1770132688448,0.0011,2297.6,2296.3,0.01738639]
[1770132688995,0.0011,2297.6,2296.5,0.01738639]
[1770132689281,0.0011,2297.6,2296.6,0.01738639]
[1770132689657,1.08760795,2298.7,2297.4,0.01738639]
[1770132689855,1.08760795,2298.7,2297.5,0.93038639]
[1770132690047,1.08760795,2298.7,2297.6,0.01738639]
[1770132690373,1.08760795,2298.7,2297.5,0.913]
[1770132690573,4.35023275,2298.8,2297.7,0.01738639]
[1770132690574,1.08755551,2298.8,2297.7,0.01738639]
[1770132690778,1.0905116,2298.9,2297.5,0.913]
[1770132690964,1.0905116,2298.9,2297.7,0.01738639]
[1770132691279,0.003,2298.9,2297.8,12.95307701]
[1770132691478,4.34890214,2299.5,2297.9,1.29704634]
[1770132691678,1.08719286,2299.5,2298.0,14.05836592]
[1770132692184,0.01738639,2299.4,2297.9,5.64883415]
[1770132692390,1.08719286,2299.5,2298.0,1.08790252]
[1770132692549,1.10457925,2299.5,2298.0,1.08790252]
[1770132692756,4.3476173,2300.2,2298.0,14.05836592]
[1770132692994,0.01738639,2299.7,2298.3,12.95307701]
[1770132693152,0.01738639,2299.8,2298.4,0.913]
[1770132693356,0.01738639,2299.5,2298.4,0.913]
[1770132693667,1.08728743,2299.3,2297.9,2.00092483]
[1770132693984,0.01738639,2299.1,2297.9,2.00092483]
[1770132694184,0.01738639,2299.0,2297.9,0.913]
[1770132694355,0.01738639,2299.2,2297.9,0.913]
[1770132694850,0.01738639,2299.1,2297.4,4.35269261]
[1770132695052,0.01738639,2298.0,2296.2,19.67794251]
[1770132695281,0.01738639,2298.6,2296.6,13.86607701]
[1770132695470,0.01738639,2298.5,2296.8,4.35371229]
[1770132695679,1.08771319,2298.4,2296.8,4.35371229]
[1770132695850,1.10509958,2298.4,2296.7,1.0885183]
[1770132696053,1.08771319,2298.4,2296.7,3.45830701]
[1770132696280,1.08771319,2298.4,2296.7,3.4756934]
[1770132696457,1.08771319,2298.4,2296.9,0.01738639]
[1770132696660,0.01738639,2298.2,2296.7,3.45830701]
[1770132696860,0.01738639,2298.3,2296.6,2.00154163]
[1770132697067,13.00791942,2298.2,2296.6,2.00154163]
[1770132697296,12.99053303,2298.2,2296.6,2.00154163]
[1770132697583,1.08804456,2297.7,2295.7,4.35593659]
[1770132697762,0.01738639,2297.6,2296.2,1.08874989]
[1770132697960,0.01738639,2297.6,2295.8,2.00192301]
[1770132697961,0.01738639,2297.3,2295.8,2.00192301]
[1770132698168,0.01738639,2297.3,2295.8,2.00191802]
[1770132698370,13.00791942,2297.5,2296.0,4.35524418]
[1770132698559,12.99053303,2297.5,2296.2,1.08872684]
[1770132698883,2.01743095,2297.7,2296.0,1.08882145]
[1770132699078,13.00791942,2297.6,2296.1,1.08878888]
[1770132699379,12.99053303,2297.3,2295.8,0.001]
[1770132699551,1.08828138,2297.2,2295.8,0.001]
[1770132700487,1.10566777,2297.2,2295.8,0.001]
[1770132700651,0.01738639,2296.9,2295.8,0.001]
[1770132700852,13.00791942,2296.3,2294.6,0.001]
[1770132701081,13.00791942,2296.3,2294.8,1.08939063]
[1770132701283,0.32015622,2296.2,2294.8,1.08939063]
[1770132701501,0.29802133,2296.1,2294.6,0.001]
[1770132701783,1.08885017,2296.0,2294.8,1.10680594]
[1770132702087,12.99053303,2295.5,2293.9,0.001]
[1770132702272,7.83734696,2295.4,2294.0,1.08976863]
[1770132702581,0.01738639,2294.9,2293.7,0.001]
[1770132702796,1.37361538,2294.8,2293.7,0.001]
[1770132702988,0.01738639,2294.3,2293.4,0.001]
[1770132703160,0.46061538,2294.7,2293.0,0.1089268]
[1770132703161,13.11031942,2294.6,2293.0,0.1089268]
[1770132703486,0.913,2294.5,2293.0,0.1089268]
[1770132703663,14.0975289,2294.4,2293.0,0.1089268]
[1770132703983,0.01738639,2294.0,2292.7,0.001]
[1770132704184,0.01738639,2293.7,2292.0,4.36298225]
[1770132704361,0.913,2293.6,2292.0,4.36298947]
[1770132704771,0.913,2293.6,2291.9,0.913]
[1770132705303,0.913,2293.6,2291.4,4.38150379]
[1770132705304,12.99053303,2292.9,2290.5,0.01738639]
[1770132705491,12.99053303,2292.2,2290.6,1.09141709]
[1770132705801,12.99053303,2292.2,2290.2,4.38375017]
[1770132705802,1.09079802,2291.9,2290.1,4.3665329]
[1770132706089,0.913,2291.8,2290.2,0.01738639]
[1770132706256,0.913,2291.8,2290.0,1.09168193]
[1770132706257,0.01738639,2291.6,2290.0,1.09168193]
[1770132706458,0.913,2291.8,2290.0,1.09168193]
[1770132706759,0.29935723,2291.9,2290.1,0.01738639]
[1770132707087,0.29935723,2291.9,2290.5,0.01738639]
[1770132707285,0.29935723,2291.9,2290.2,0.913]
[1770132707795,0.01738639,2291.7,2289.9,1.09174617]
[1770132707987,0.01738639,2291.7,2290.1,1.0916401]
[1770132708292,0.00215917,2291.7,2290.2,1.09157092]
[1770132708464,0.01738639,2291.7,2290.2,1.09160323]
[1770132708787,1.09084562,2291.8,2290.3,0.01738639]
[1770132708951,1.09084562,2291.8,2290.2,1.09160323]
[1770132709164,1.10823201,2291.8,2289.9,4.36693414]
[1770132709391,1.10823201,2291.8,2290.2,1.09160427]
[1770132709611,1.09065412,2292.3,2290.7,0.01738639]
[1770132709766,0.2997809,2292.6,2291.1,0.01738639]
[1770132709963,0.2997809,2292.6,2290.8,2.02270819]
[1770132710263,0.2997809,2292.6,2290.9,0.01738639]
[1770132710691,0.2997809,2292.6,2290.8,3.08412734]
[1770132710859,0.31716729,2292.6,2290.8,2.17012734]
[1770132711065,0.2997809,2292.6,2291.0,0.01738639]
[1770132711590,0.2997809,2292.6,2291.1,0.01738639]
[1770132711798,0.2997809,2292.6,2291.3,0.01738639]
[1770132711993,4.36052495,2293.4,2291.8,0.01738639]
[1770132712192,1.09013212,2293.3,2292.0,0.01738639]
[1770132712398,1.09013212,2293.3,2291.8,0.93138639]
[1770132712599,1.09013212,2293.3,2291.8,0.914]
[1770132712893,0.01738639,2293.1,2291.3,0.55078156]
[1770132713194,1.09013212,2293.3,2291.5,0.01738639]
[1770132713373,1.10751851,2293.3,2291.5,0.01738639]
[1770132713573,1.09013212,2293.3,2291.6,0.01738639]
[1770132713774,4.36052495,2293.4,2291.8,1.09084562]
[1770132713962,0.01738639,2293.2,2291.6,1.09093626]
[1770132714162,0.93138639,2293.1,2291.1,5.29608315]
[1770132714378,0.914,2293.1,2291.7,1.09088358]
[1770132714777,12.30420741,2293.0,2291.1,0.93138639]
[1770132714979,0.914,2293.1,2291.6,1.09091469]
[1770132715375,0.01738639,2292.9,2290.5,11.93116542]
[1770132715576,0.01738639,2292.6,2290.7,4.36535906]
[1770132715775,1.09041741,2292.7,2290.9,4.38241468]
[1770132716001,1.1078038,2292.7,2290.9,1.09127417]
[1770132716296,0.01738639,2292.5,2290.8,1.09132127]
[1770132716495,0.11978639,2292.6,2290.8,1.09132127]
[1770132716887,0.1024,2292.6,2290.8,1.09132127]
[1770132717291,0.01738639,2292.5,2290.8,1.09132127]
[1770132717488,0.01738639,2292.6,2290.8,1.09132127]
[1770132717814,1.10789893,2292.5,2290.8,1.09132127]
[1770132718000,0.01738639,2292.4,2290.8,1.09132127]
[1770132718171,0.01738639,2292.4,2290.1,0.001]
[1770132718172,0.01738639,2291.2,2290.1,0.001]
[1770132718377,7.83734696,2291.0,2289.9,1.09174988]
[1770132718583,0.93138639,2291.2,2289.4,4.3679279]
[1770132718584,0.914,2291.2,2289.4,4.3679279]
[1770132718784,0.914,2291.2,2290.3,1.09151534]
[1770132718984,0.914,2291.2,2290.0,1.09169671]
[1770132719186,0.914,2291.2,2289.7,4.36725283]
[1770132719388,0.914,2291.2,2289.8,4.36714905]
[1770132719586,0.914,2291.2,2290.3,1.09153375]
[1770132719786,0.914,2291.2,2289.9,4.36688313]
[1770132719787,1.0911789,2291.1,2289.9,1.09175073]
[1770132719990,1.09098843,2291.5,2289.9,1.09175073]
[1770132720194,13.37719087,2292.9,2290.9,0.01738639]
[1770132720390,13.37719087,2292.9,2291.0,0.01738639]
[1770132720391,4.36162557,2292.8,2291.0,0.01738639]
[1770132720601,0.01738639,2292.7,2290.8,0.01738639]
[1770132720792,0.01738639,2292.7,2289.9,1.09175073]
[1770132720793,0.01738639,2291.5,2289.9,1.09175073]
[1770132720991,0.01738639,2291.6,2289.9,3.31113904]
[1770132721306,0.01738639,2291.1,2289.8,1.09177008]
[1770132721483,0.01738639,2291.2,2289.8,1.09177008]
[1770132721685,0.01738639,2291.2,2289.0,4.38605078]
[1770132721686,0.01738639,2291.2,2289.2,0.001]
[1770132721887,4.36381103,2291.6,2289.9,0.01738639]
[1770132722280,4.36317822,2292.0,2290.5,0.01738639]
[1770132722590,0.01738639,2291.7,2289.3,16.31650847]
[1770132722790,12.30420741,2291.7,2289.7,0.01738639]
[1770132723012,12.30420741,2291.7,2289.2,0.001]
[1770132723013,12.28682102,2291.2,2289.2,0.001]
[1770132723187,0.914,2291.2,2289.7,0.01738639]
[1770132723690,0.914,2291.2,2290.1,0.01738639]
[1770132723885,1.0911789,2291.1,2290.1,1.09164666]
[1770132724084,1.0911789,2291.1,2289.3,0.01738639]
[1770132724319,1.09084562,2291.8,2290.5,0.01738639]
[1770132724608,12.28682102,2292.5,2290.5,0.01738639]
[1770132724609,12.28682102,2292.2,2290.5,0.01738639]
[1770132724811,20.10678159,2292.1,2290.2,0.01738639]
[1770132725330,20.10678159,2292.1,2290.4,0.01738639]
[1770132725883,1.09075043,2292.0,2290.5,1.10885113]
[1770132726415,1.09075043,2292.0,2291.0,0.01738639]
[1770132726721,1.09075043,2292.0,2290.7,0.01738639]
[1770132726927,1.09075043,2292.0,2290.5,1.10885113]
[1770132727483,1.09075043,2292.0,2290.7,0.01738639]
[1770132727880,4.36300174,2292.2,2290.7,0.01738639]
[1770132728081,4.36300174,2292.2,2290.8,0.01738639]
[1770132728283,4.36300174,2292.2,2290.9,0.01738639]
[1770132728502,4.36300174,2292.3,2291.2,0.01738639]
[1770132728823,4.36300174,2292.3,2290.7,1.09136193]
[1770132729000,4.36300174,2292.3,2290.8,0.01738639]
[1770132729309,4.36300174,2292.3,2290.7,1.10874832]
[1770132729483,4.36300174,2292.3,2290.7,0.01738639]
[1770132729686,4.36300174,2292.3,2290.7,1.09135811]
[1770132729887,4.36300174,2292.3,2290.5,1.09146474]
[1770132730414,0.01738639,2291.5,2290.2,0.001]
[1770132730605,0.915,2291.4,2290.2,0.001]
[1770132730806,1.16840855,2292.1,2290.4,1.09149683]
[1770132730995,0.915,2292.0,2290.6,0.01738639]
[1770132731198,13.20182102,2292.0,2290.2,0.001]
[1770132731482,12.28682102,2291.7,2290.2,0.001]
[1770132731698,12.30420741,2291.7,2290.2,0.001]
[1770132731898,1.09094082,2291.6,2290.2,0.001]
[1770132732092,0.1024,2291.5,2290.2,0.001]
[1770132732623,1.09094082,2291.6,2290.2,0.001]
[1770132732928,0.915,2291.4,2290.2,0.001]
[1770132733129,1.09094082,2291.6,2290.2,0.001]
[1770132733297,1.16840855,2292.1,2290.5,0.01738639]
[1770132733499,1.09073012,2292.1,2291.0,0.01738639]
[1770132733724,1.09073012,2292.1,2290.7,0.01738639]
[1770132734094,4.36281139,2292.3,2290.8,1.0913218]
[1770132734291,4.36281139,2292.3,2291.1,0.01738639]
[1770132734491,4.36281139,2292.3,2290.9,0.54739954]
[1770132734735,1.16840855,2292.2,2290.6,1.09141526]
[1770132734903,1.16840855,2292.1,2290.7,1.09136038]
[1770132735095,13.45522957,2292.2,2290.4,4.36602429]
[1770132735422,1.16840855,2292.0,2290.5,1.09143565]
[1770132735622,2.08340855,2291.9,2290.5,1.09146086]
[1770132735926,0.36153998,2291.8,2290.4,1.09151148]
[1770132736228,1.09089322,2291.7,2290.2,1.09260771]
[1770132736698,1.09089322,2291.7,2290.6,0.01738639]
[1770132737107,1.09089322,2291.7,2290.3,0.01738639]
[1770132738207,1.09089322,2291.7,2290.4,1.09151239]
[1770132739144,1.09089322,2291.7,2290.3,1.0915228]
[1770132739431,1.09089322,2291.7,2290.8,0.01738639]
[1770132739619,1.09056011,2292.4,2291.3,0.01738639]
[1770132739818,1.09056011,2292.4,2291.4,0.01738639]
[1770132740206,0.0011,2292.0,2291.4,1.09103604]
[1770132741032,0.0011,2292.0,2290.7,1.1700037]
[1770132741218,0.0011,2292.0,2291.3,1.09106367]
[1770132742004,0.0011,2292.0,2290.8,4.36517146]
[1770132742211,0.0011,2292.0,2291.0,4.36490203]
[1770132742612,0.0011,2292.0,2291.0,5.3679069]
[1770132742861,0.0011,2292.0,2290.6,1.1710037]
[1770132742999,0.0011,2292.0,2290.9,1.09127114]
[1770132743204,0.0011,2292.0,2291.1,0.01738639]
[1770132743650,1.09056011,2292.4,2291.3,0.01738639]
[1770132744118,1.09054731,2292.5,2291.6,0.01738639]
[1770132744318,1.09032229,2292.9,2291.6,1.09094082]
[1770132744515,1.09032229,2292.9,2291.5,1.10833925]
[1770132744920,0.0011,2293.1,2292.1,0.01738639]
[1770132745134,1.09134793,2293.1,2292.1,0.915]
[1770132745308,0.0011,2293.3,2292.5,0.01738639]
[1770132745509,1.16840855,2294.3,2292.9,0.01738639]
[1770132745734,4.35881788,2294.3,2293.1,0.01738639]
[1770132745934,4.35881788,2294.3,2293.0,0.01738639]
[1770132746154,1.08960948,2294.4,2293.1,0.01738639]
[1770132746446,1.08960948,2294.4,2292.9,5.27628474]
[1770132746609,1.08960948,2294.4,2292.9,2.00531331]
[1770132746810,1.08960948,2294.4,2293.0,1.09025314]
[1770132747017,1.08960948,2294.4,2293.0,1.09023115]
[1770132747237,1.08960948,2294.4,2293.0,1.09024091]
[1770132747437,0.01738639,2294.3,2292.9,5.26986067]
[1770132747640,1.08960948,2294.4,2293.0,1.09024461]
[1770132747814,1.0174,2294.3,2292.8,0.01738639]
[1770132748015,0.01738639,2292.9,2291.7,4.36355506]
[1770132748213,0.01738639,2292.8,2291.6,1.09090822]
[1770132748422,0.01738639,2292.5,2291.3,1.09105405]
[1770132748735,0.01738639,2292.5,2291.3,1.09107549]
[1770132749039,0.01738639,2292.4,2291.0,0.915]
[1770132749250,0.01738639,2292.2,2291.2,1.0911082]
[1770132749414,0.01738639,2292.5,2291.2,1.09109548]
[1770132749614,0.01738639,2292.4,2291.0,0.915]
[1770132749940,0.01738639,2292.4,2291.3,1.09108017]
[1770132750148,0.01738639,2292.4,2291.2,1.09110996]
[1770132750529,1.09060768,2292.3,2291.1,4.36471053]
[1770132751041,1.09060768,2292.3,2291.0,1.09120199]
[1770132751219,1.10799407,2292.3,2291.0,1.09120199]
[1770132751419,1.09060768,2292.3,2291.0,1.09120199]
[1770132751740,4.36132829,2292.9,2291.0,13.93897656]
[1770132751941,0.01738639,2292.7,2291.0,13.93897656]
[1770132752128,0.01738639,2292.7,2291.1,1.83038827]
[1770132752447,1.09041741,2292.7,2291.2,1.09113128]
[1770132753858,0.01738639,2293.0,2291.2,13.93890585]
[1770132754159,0.01738639,2293.6,2291.7,0.01738639]
[1770132754369,0.01738639,2293.6,2291.8,0.915]
[1770132754528,1.08994201,2293.7,2291.9,13.93857259]
[1770132754862,2.4643776,2294.2,2292.1,12.86516096]
[1770132754863,1.08975197,2294.1,2292.1,12.86516096]
[1770132755030,0.01738639,2294.0,2292.3,12.84777457]
[1770132755228,1.08975197,2294.1,2292.3,12.84777457]
[1770132755625,0.01738639,2294.0,2292.2,0.01738639]
[1770132755826,0.01738639,2293.9,2292.2,0.01738639]
[1770132756056,0.01738639,2293.8,2292.3,0.915]
[1770132756260,1.08975197,2294.1,2292.5,12.86516096]
[1770132756466,4.35786813,2294.8,2293.0,1.09027474]
[1770132756628,1.16840855,2295.0,2293.1,13.76277457]
[1770132756629,4.374866,2295.0,2293.1,13.76277457]
[1770132756829,4.35747961,2295.0,2293.2,12.86516096]
[1770132757030,4.35747961,2295.0,2293.5,0.01738639]
[1770132757347,4.35747961,2295.0,2293.3,0.915]
[1770132757552,4.35747961,2295.0,2293.4,0.01738639]
[1770132758361,0.01738639,2294.9,2293.3,0.915]
[1770132758552,0.01738639,2294.6,2293.3,0.915]
[1770132759232,0.01738639,2294.2,2292.4,1.09053229]
[1770132759428,0.01738639,2294.0,2292.4,2.25184286]
[1770132759631,0.01738639,2293.9,2292.4,1.09053567]
[1770132759863,12.19307617,2294.1,2292.7,1.09041499]
[1770132760032,12.19307617,2294.1,2292.7,1.09037708]
[1770132760233,0.1024,2294.3,2292.8,4.36136271]
[1770132760536,1.08965697,2294.3,2292.5,1.09051254]
[1770132760733,1.08965697,2294.3,2292.6,0.43793477]
[1770132761348,0.01738639,2294.2,2292.5,1.09051254]
[1770132761553,0.01738639,2294.1,2292.4,1.10790963]
[1770132761860,0.01738639,2293.8,2292.4,1.09054914]
[1770132762064,0.01738639,2294.1,2292.4,1.09054914]
[1770132762237,0.01738639,2294.0,2292.4,1.09055509]
[1770132762437,1.08984698,2293.9,2292.2,1.09065526]
[1770132763066,1.08984698,2293.9,2292.2,1.10804165]
[1770132763247,1.08984698,2293.9,2292.2,1.09065526]
[1770132763681,1.08984698,2293.9,2291.5,12.84777457]
[1770132763682,0.01738639,2293.4,2291.5,12.84777457]
[1770132763972,7.67536115,2293.8,2291.5,12.84777457]
[1770132763973,1.08984698,2293.9,2292.2,0.01738639]
[1770132764134,1.08984698,2293.9,2292.3,0.01738639]
[1770132764556,4.35938794,2294.0,2292.4,1.09056011]
[1770132764761,4.35938794,2294.0,2292.6,0.01738639]
[1770132765841,4.35907293,2294.1,2292.7,0.01738639]
[1770132766046,1.08951451,2294.6,2293.2,0.01738639]
[1770132766339,4.35731497,2295.0,2293.6,0.01738639]
[1770132766540,0.0011,2294.8,2294.0,0.01738639]
[1770132766762,0.0011,2294.8,2293.7,1.08994201]
[1770132767275,0.0011,2294.8,2293.7,1.65229941]
[1770132767569,0.23132006,2295.1,2294.4,0.01738639]
[1770132767735,0.23132006,2295.1,2294.0,0.01738639]
[1770132767736,1.3206039,2295.1,2294.0,0.01738639]
[1770132767941,1.3206039,2295.1,2293.7,2.54891302]
[1770132768261,1.3206039,2295.1,2293.8,0.69260675]
[1770132768443,1.3206039,2295.1,2293.8,0.70999314]
[1770132768775,1.3206039,2295.1,2294.0,1.08979947]
[1770132769296,1.3206039,2295.1,2293.9,1.08979987]
[1770132769516,0.23132006,2295.1,2294.0,0.01738639]
[1770132769802,1.08906281,2295.6,2294.6,0.01738639]
[1770132770168,1.08892542,2295.9,2294.6,0.01738639]
[1770132770365,0.0011,2296.0,2295.0,0.01738639]
[1770132770605,1.38698993,2296.9,2295.5,1.08908734]
[1770132770900,1.38698993,2296.9,2295.4,4.35648783]
[1770132770901,4.35392744,2296.8,2295.4,1.08910824]
[1770132771104,0.29851902,2296.9,2295.4,1.10649463]
[1770132771280,0.29851902,2296.9,2296.1,0.01738639]
[1770132771598,4.35172872,2298.0,2296.1,0.01738639]
[1770132771599,4.35109817,2298.3,2298.1,0.02556041]
[1770132771920,4.35109817,2298.3,2296.8,0.01738639]
[1770132772198,1.38651877,2298.4,2297.5,0.01738639]
[1770132772199,0.29875826,2298.4,2297.5,0.01738639]
[1770132772407,1.38647166,2298.4,2296.9,12.44715249]
[1770132772629,0.0011,2298.7,2297.5,13.53529177]
[1770132772770,0.0011,2298.9,2297.9,0.01738639]
[1770132772964,0.0011,2298.9,2298.1,0.01738639]
[1770132773196,0.0011,2299.9,2298.3,0.01738639]
[1770132773197,1.08705104,2299.8,2298.3,0.01738639]
[1770132773387,1.08705104,2299.8,2298.4,0.01738639]
[1770132773714,0.01738639,2299.3,2297.3,4.688082]
[1770132773879,0.59340363,2299.2,2297.4,1.08818563]
[1770132774072,0.914,2299.3,2297.8,0.01738639]
[1770132774392,0.914,2299.3,2297.7,0.01738639]
[1770132774602,1.08733472,2299.2,2297.8,1.08799721]
[1770132774765,1.08733472,2299.2,2297.5,1.08811458]
[1770132774966,1.08733472,2299.2,2297.6,1.10547143]
[1770132775207,1.08733472,2299.2,2297.7,1.08803449]
[1770132775513,1.08733472,2299.2,2297.7,1.10542088]
[1770132775671,4.3493389,2299.6,2297.7,1.10542088]
[1770132775672,0.1024,2299.8,2298.3,0.01738639]
[1770132775874,0.22737071,2301.3,2300.2,0.02026851]
[1770132776080,0.33933357,2302.3,2300.5,0.01738639]
[1770132776374,1.08580242,2302.5,2301.2,0.01738639]
[1770132776730,0.0011,2302.7,2301.5,0.01738639]
[1770132777021,0.0011,2302.7,2301.6,0.913]
[1770132777187,0.0011,2302.7,2301.1,0.93038639]
[1770132777188,0.57601724,2302.6,2301.1,0.93038639]
[1770132777387,0.0011,2302.7,2301.5,0.01738639]
[1770132777701,0.0011,2302.7,2301.6,0.93038639]
[1770132777702,0.57601724,2302.6,2301.6,0.93038639]
[1770132777904,4.34253951,2303.0,2301.6,0.93038639]
[1770132777905,0.0011,2303.1,2302.8,0.01738639]
[1770132778090,1.08659804,2303.1,2302.8,0.01738639]
[1770132778285,1.08511654,2303.9,2303.1,0.01738639]
[1770132778487,1.08511654,2303.9,2303.2,0.01738639]
[1770132778488,1.66113378,2303.9,2303.2,0.01738639]
[1770132778696,1.66113378,2303.9,2303.3,0.01738639]
[1770132778896,1.66113378,2303.9,2303.1,0.01738639]
[1770132779104,1.08511654,2303.9,2303.2,0.01738639]
[1770132779304,1.08511654,2303.9,2303.1,0.01738639]
[1770132779515,0.29820334,2304.0,2303.8,0.01738639]
[1770132779722,0.57901724,2305.0,2304.3,0.01738639]
[1770132779892,1.08762077,2305.0,2304.3,0.01738639]
[1770132780098,1.08762077,2305.0,2303.9,0.01738639]
[1770132780099,1.08762077,2305.0,2303.3,0.01738639]
[1770132780301,12.49990549,2304.3,2302.1,0.01738639]
[1770132780608,12.49990549,2304.2,2302.6,0.01738639]
[1770132780927,15.21075249,2303.9,2301.7,0.01738639]
[1770132781102,0.01738639,2303.7,2301.6,0.01738639]
[1770132781300,0.0011,2302.5,2301.1,0.01738639]
[1770132781600,0.0011,2302.5,2299.9,4.34797255]
[1770132781824,0.0011,2302.5,2300.7,0.01738639]
[1770132782121,0.0011,2302.5,2300.9,0.01738639]
[1770132782496,0.0011,2302.7,2302.2,0.01303441]
[1770132782810,4.3400894,2304.3,2302.2,0.01303441]
[1770132782811,1.08464575,2304.9,2303.5,0.01303441]
[1770132783006,1.08464575,2304.9,2302.7,1.08568202]
[1770132783007,1.08464575,2304.9,2303.0,0.01303441]
[1770132783333,0.003,2305.0,2303.7,0.01303441]
[1770132783492,0.29882052,2306.1,2304.9,0.01303441]
[1770132783692,0.29882052,2306.1,2305.6,0.01303441]
[1770132783915,1.08361754,2307.1,2305.9,0.01303441]
[1770132784123,1.08342361,2307.5,2305.8,0.01303441]
[1770132784320,1.08328278,2307.8,2306.0,0.01303441]
[1770132784819,0.01303441,2307.8,2304.7,0.01303441]
[1770132785124,0.01303441,2307.8,2303.4,1.30239341]
[1770132785125,0.01303441,2306.1,2303.8,11.76705788]
[1770132785455,0.01303441,2306.2,2304.2,0.01303441]
[1770132785594,0.01303441,2306.3,2304.2,0.01303441]
[1770132785797,12.49990549,2307.5,2306.0,1.08410046]
[1770132786021,0.01303441,2307.6,2305.5,0.01303441]
[1770132786223,0.01303441,2307.2,2305.0,0.01303441]
[1770132786428,0.911,2307.2,2305.0,0.01303441]
[1770132786630,4.33313112,2307.9,2305.6,0.01303441]
[1770132786797,0.29827655,2308.0,2306.5,0.01303441]
[1770132786993,0.29827655,2308.0,2307.3,0.01303441]
[1770132787250,0.1089268,2308.7,2307.0,0.01733365]
[1770132787251,1.18737722,2308.7,2307.0,0.01733365]
[1770132787408,1.18737722,2308.7,2308.0,0.01733365]
[1770132787409,0.10451452,2308.7,2308.0,0.01733365]
[1770132787751,0.29882296,2309.7,2308.8,0.01733365]
[1770132787904,0.29882296,2309.7,2308.5,0.01733365]
[1770132787905,1.38122778,2309.7,2307.7,0.92833365]
[1770132788234,1.38122778,2309.7,2308.3,0.01733365]
[1770132788408,1.38122778,2309.7,2308.0,0.01733365]
[1770132788409,1.38122778,2309.7,2308.4,0.01733365]
[1770132788596,1.38122778,2309.7,2308.0,0.01733365]
[1770132788797,1.38122778,2309.7,2307.4,0.01733365]
[1770132788798,0.01733365,2309.5,2307.4,0.01733365]
[1770132788997,0.01733365,2309.5,2306.9,1.10101176]
[1770132788998,0.01733365,2309.1,2307.2,0.01733365]
[1770132789201,0.01733365,2309.5,2307.2,0.01733365]
[1770132789202,1.38122778,2309.7,2307.9,0.01733365]
[1770132789518,1.38122778,2309.7,2307.8,0.01733365]
[1770132789519,12.49990549,2309.6,2307.8,0.01733365]
[1770132789705,1.39856143,2309.7,2307.6,0.01733365]
[1770132789913,0.01733365,2309.0,2306.5,0.56321414]
[1770132790231,7.71856074,2309.4,2306.7,0.01733365]
[1770132790232,0.1024,2308.7,2306.7,0.01733365]
[1770132790432,0.1024,2308.7,2306.3,0.92733365]
[1770132790433,0.01733365,2308.3,2306.3,0.01733365]
[1770132790598,0.91,2308.6,2306.1,0.01733365]
[1770132790798,0.01733365,2308.3,2306.4,0.01733365]
[1770132790999,0.01733365,2308.3,2304.6,11.76705788]
[1770132791000,0.01733365,2307.5,2304.6,11.76705788]
[1770132791201,0.1024,2307.9,2306.1,0.01733365]
[1770132791425,2.89602365,2307.8,2305.8,0.01733365]
[1770132791624,0.01733365,2307.6,2305.7,1.08425774]
[1770132791835,0.91,2307.5,2305.6,0.01733365]
[1770132792440,0.91,2307.5,2306.0,0.01733365]
[1770132792738,0.1024,2307.1,2305.2,0.01733365]
[1770132792952,0.1024,2307.1,2305.1,0.01733365]
[1770132793109,1.08356449,2307.2,2305.7,0.01733365]
[1770132793314,1.08356449,2307.2,2305.5,0.01733365]
[1770132793520,1.08356449,2307.2,2305.5,1.10168929]
[1770132793721,0.01733365,2307.6,2305.5,1.10168929]
[1770132793722,0.01733365,2307.9,2305.8,0.01733365]
[1770132794043,12.51723914,2307.8,2305.9,0.01733365]
[1770132794211,0.11973365,2308.0,2305.9,0.01733365]
[1770132794414,0.11973365,2308.0,2305.4,0.01733365]
[1770132794415,0.01733365,2307.2,2305.4,0.01733365]
[1770132794742,1.08375238,2306.8,2305.0,0.01733365]
[1770132795815,0.0011,2307.5,2306.5,0.01733365]
[1770132796057,2.009435,2309.5,2308.1,0.01733365]
[1770132796215,1.08243851,2309.6,2307.4,0.01733365]
[1770132796216,0.0011,2308.5,2307.8,0.01733365]
[1770132796756,1.99243851,2309.6,2307.8,0.01733365]
[1770132796757,1.08248538,2309.5,2308.4,1.08300121]
[1770132796913,1.08248538,2309.5,2308.1,1.10043987]
[1770132797113,1.08248538,2309.5,2307.2,0.01733365]
[1770132797444,0.29882296,2309.7,2308.3,1.08303517]
[1770132797631,0.29882296,2309.7,2308.8,0.01733365]
[1770132797949,1.08219228,2310.2,2309.1,0.01733365]
[1770132798243,0.003,2310.9,2310.3,0.01733365]
[1770132798412,0.003,2310.9,2309.5,0.01733365]
[1770132798413,0.29642215,2311.6,2309.9,0.01733365]
[1770132798614,1.29628981,2314.3,2311.9,0.01733365]
[1770132798813,1.29628981,2314.3,2311.3,0.01733365]
[1770132798814,0.52337819,2313.4,2311.8,1.08138826]
[1770132799061,12.49990549,2314.4,2311.8,1.08138826]
[1770132799062,0.09020693,2314.5,2313.0,0.01733365]
[1770132799235,0.01733365,2315.8,2313.0,0.01733365]
[1770132799236,1.07944732,2316.0,2314.4,0.01733365]
[1770132799437,1.07944732,2316.0,2314.3,0.268]
[1770132799620,8.79735594,2317.4,2314.5,0.01733365]
[1770132799827,1.09612885,2317.4,2315.0,0.01733365]
[1770132800023,1.0787952,2317.4,2315.3,0.01733365]
[1770132800222,0.02158708,2316.0,2314.4,0.53530686]
[1770132800527,0.02158708,2316.0,2313.9,0.2335703]
[1770132800528,0.02158708,2315.5,2313.4,0.467]
[1770132800652,0.02158708,2315.5,2313.0,0.22600224]
[1770132800653,0.02158708,2315.6,2313.2,0.467]
[1770132800852,0.02158708,2315.0,2313.0,0.22600224]
[1770132801063,0.02158708,2315.4,2313.1,0.02158708]
[1770132801282,0.02158708,2315.4,2313.0,0.22600224]
[1770132801283,0.02158708,2314.5,2313.0,0.22600224]
[1770132801428,0.12398708,2315.0,2313.0,0.22600224]
[1770132801627,0.49020303,2314.6,2313.0,0.22600224]
[1770132801870,0.61419011,2314.8,2312.4,0.02158708]
[1770132802169,0.61419011,2314.8,2311.7,0.02158708]
[1770132802170,0.02158708,2313.8,2311.7,0.02158708]
[1770132802374,0.49020303,2314.1,2311.5,0.02158708]
[1770132802579,0.22608839,2314.7,2312.5,0.02158708]